Cogmind - Beta 12 *** ADVENTURER MODE // 2023.10.27 @ 21:28:19 Player: Khazzy Result: Destroyed by B-36 Bruiser with Hammer Performance ------------- Evolutions (1) 500 Regions Visited (3) 600 Robots Destroyed (51) 255 Value Destroyed (1451) 1451 Prototype IDs (8) 160 Alien Tech Used (0) 0 Bonus (77) 77 TOTAL SCORE: 3043 Bonus ------- High Alert Combat Kills 77 Cogmind --------- Core Integrity 0/400 Matter 300/300 Energy 100/100 System Corruption 1% Temperature Cool (0) Movement Core (1350) Ox26 Location -9/Storage Parts ------- > --- POWER (2) -------- (None) > --- PROPULSION (2) --- (None) > --- UTILITY (3) ------ Huge Storage Unit > --- WEAPON (2) ------- (None) > --- INVENTORY (25) --- Small Laser Particle Gun Particle Cannon Light Assault Rifle Peak State ------------ > --- POWER ------------ Ion Engine Ion Engine > --- PROPULSION ------- Aluminum Leg Aluminum Leg > --- UTILITY ---------- Improved Heat Sink Small Storage Unit Huge Storage Unit > --- WEAPON ----------- Improved EM Shotgun Shotgun > --- INVENTORY -------- Medium Laser Small Laser Particle Gun Particle Cannon [Rating: 14] Favorites ----------- Power Light Ion Engine Engine Light Ion Engine Propulsion Compact Wheel Treads Light Treads Leg Aluminum Leg Wheel Compact Wheel Utility Small Storage Unit Device Shield Generator Storage Small Storage Unit Processor Signal Interpreter Weapon Assault Rifle Energy Gun Medium Laser Ballistic Gun Assault Rifle Build | -11 -10 -9 -9 ------- Run | Jun Mat Mat Sto Slots Evolved 2 | . . 2 . Power 1 | . . 1 . Propulsion . | . . . . Utility 1 | . . 1 . Weapon . | . . . . Parts Attached 27 | 8 2 15 2 Power 8 | 1 1 5 1 Engine 8 | 1 1 5 1 Core . | . . . . Reactor . | . . . . Propulsion 6 | 4 . 2 . Treads 1 | 1 . . . Leg 3 | 1 . 2 . Wheel 2 | 2 . . . Hover . | . . . . Flight . | . . . . Utility 6 | 1 1 4 . Device 2 | . . 2 . Storage 3 | 1 1 1 . Processor 1 | . . 1 . Hackware . | . . . . Protection . | . . . . Artifact . | . . . . Weapon 7 | 2 . 4 1 Energy Gun 4 | 1 . 2 1 Energy Cannon . | . . . . Ballistic Gun 3 | 1 . 2 . Ballistic Cannon . | . . . . Launcher . | . . . . Special Weapon . | . . . . Impact Weapon . | . . . . Slashing Weapon . | . . . . Piercing Weapon . | . . . . Special Melee Weapon . | . . . . Unidentified Prototypes . | . . . . Parts Lost 15 | . . 5 10 Power 5 | . . 2 3 Propulsion 3 | . . 1 2 Utility 3 | . . 1 2 Weapon 4 | . . 1 3 Highest Loss Streak 5 | . . 1 5 To Critical Strikes . | . . . . Average Slot Usage (%) 94 | . 96 97 83 Engine 18 | . 14 20 14 Leg 8 | . . 8 15 Wheel 13 | . 28 13 . Device 8 | . . 10 10 Storage 22 | . 24 22 22 Energy Gun 8 | . 14 5 16 Ballistic Gun 13 | . 14 16 3 Naked Turns . | . . . . Heaviest Build 102 | 12 17 102 102 Greatest Support 32 | 32 32 32 20 Greatest Overweight (x) 31 | 2 . 6 31 Average Overweight (x) 1 | . . 1 7 Largest Inventory Capacity 25 | 8 8 25 25 Average Capacity 16 | 6 8 17 25 Most Carried 8 | 7 8 8 4 Average Carried 5 | 4 6 5 3 Final Capacity 25 | 8 8 25 25 Final Carried 6 | 6 5 4 4 Class Distribution -------------------- 76% | Mutant 23% | Scavenger-Mutant Dominant Class ---------------- Mutant | -10/Materials Mutant | -9/Materials Scavenger-Mutant | -9/Storage Resources | -11 -10 -9 -9 ----------- Run | Jun Mat Mat Sto Matter Collected 1023 | 263 106 621 33 Remotely . | . . . . Salvage Created 1865 | . 337 1224 304 Parts 104 | . 20 66 18 Haulers Intercepted . | . . . . Recyclers Shooed 6 | . . 5 1 Parts Field Recycled . | . . . . Retrieved Matter . | . . . . Parts Self-Destructed . | . . . . Prevented . | . . . . Kills | -11 -10 -9 -9 ------- Run | Jun Mat Mat Sto Combat Hostiles Destroyed 46 | . 8 31 7 Guns 44 | . 8 31 5 AOE 1 | . . . 1 Classes Destroyed 6 | . 3 2 1 Recycler 2 | . 1 . 1 Operator 1 | . . . 1 Watcher 3 | . . 2 1 Swarmer 11 | . 3 4 4 Grunt 31 | . 5 24 2 Sentry 4 | . . 3 1 Best Kill Streak 5 | . 3 5 3 Combat Bots Only 5 | . 3 5 3 Max Kills in Single Turn 2 | . 1 2 2 Gunslinging 1 | . . 1 . Exploded 1 | . . . 1 Melee . | . . . . Uniques/NPCs Destroyed . | . . . . Combat | -11 -10 -9 -9 -------- Run | Jun Mat Mat Sto Damage Taken 1677 | . 177 779 721 Core 424 | . 24 179 221 Absorbed by Shields 254 | . . 254 . Core Remaining (%) 95 | 100 90 . . Volleys Fired 149 | . 23 99 27 Largest 2 | . 2 2 2 Hottest 95 | . 70 85 95 Shots Fired 270 | . 46 186 38 Gun 270 | . 46 186 38 Cannon . | . . . . Launcher . | . . . . Special . | . . . . Kinetic 174 | . 23 147 4 Thermal 70 | . 23 28 19 Explosive . | . . . . Electromagnetic 26 | . . 11 15 Robot Hit Streak 29 | . 13 29 29 Robot Miss Streak 5 | . 2 4 5 Penetration Max . | . . . . Secondary Targets 5 | . 1 4 . Max Gunslinging Chain 1 | . 1 1 . Shots Hit Robots 203 | . 34 139 30 Core Hits 94 | . 16 63 15 Critical Kills 1 | . . 1 . Critical Parts Destroyed 2 | . . 2 . Critical Strikes 12 | . 4 5 3 Burn 9 | . 4 2 3 Destroy 3 | . . 3 . Melee Attacks . | . . . . Impact . | . . . . Slashing . | . . . . Piercing . | . . . . Sneak Attacks . | . . . . Combat Hostiles . | . . . . Follow-up Attacks . | . . . . Damage Inflicted 3097 | . 430 2155 512 Guns 2909 | . 426 2030 453 Cannons . | . . . . Explosions 56 | . . . 56 Melee . | . . . . Ramming 132 | . 4 125 3 Kinetic 1793 | . 201 1582 10 Thermal 851 | . 225 336 290 Explosive . | . . . . Electromagnetic 321 | . . 112 209 Impact . | . . . . Slashing . | . . . . Piercing . | . . . . Highest Corruption 1 | . . 1 1 Average Corruption 1 | . . 1 1 Corruption Purged . | . . . . Corruption Blocked . | . . . . Effects 8 | . . 8 . Message Errors 3 | . . 3 . Matter Fused 2 | . . 2 . Data Loss (minor) 3 | . . 3 . Overload Shots . | . . . . Overflow Damage 2 | . . 2 . Projectiles . | . . . . Explosions . | . . . . Melee 2 | . . 2 . Knockbacks 3 | . . 3 . Impact 3 | . . 3 . Kinetic . | . . . . Secondary . | . . . . Self-Inflicted Damage 32 | . 2 30 . Shots . | . . . . Rammed 12 | . 1 10 1 Targets Rammed 24 | . 1 20 3 Kicked 12 | . . 10 2 Crushed . | . . . . Highest Temperature 385 | . 129 385 15 Average Temperature 115 | . 39 157 9 Received Heat Transfer 802 | . 108 469 225 Effects 4 | . . 4 . Energy Bleed 2 | . . 2 . Interference 2 | . . 2 . Siege Activations . | . . . . Robots Corrupted . | . . . . Combat Hostiles . | . . . . Parts Fried . | . . . . Impact Corruptions 1 | . . 1 . Robots Melted 1 | . . . 1 Combat Hostiles 1 | . . . 1 Parts Melted 4 | . 2 1 1 Heat Transferred 2949 | . 962 962 1025 Parts Sabotaged . | . . . . Parts Stolen . | . . . . Parts Stripped . | . . . . Power Chain Reactions 1 | . . . 1 Missiles Intercepted . | . . . . Alert | -11 -10 -9 -9 ------- Run | Jun Mat Mat Sto Peak Influence 517 | . 277 517 327 Initial 157 | . . 99 157 Average 255 | . 150 301 242 Maximum Alert Level 2 | . 1 2 1 Low Security (%) 34 | 100 70 19 40 Level 1 47 | . 29 52 59 Level 2 17 | . . 28 . Level 3 . | . . . . Level 4 . | . . . . Level 5 . | . . . . High Security . | . . . . Max Security . | . . . . Squads Dispatched 10 | . 1 8 1 Investigation 6 | . 1 5 . Extermination . | . . . . Reinforcement 4 | . . 3 1 Assault . | . . . . Garrison . | . . . . Intercept . | . . . . Searches Triggered . | . . . . Construction Impeded 2 | . . 2 . Haulers Reinforced . | . . . . Active Scanning Responses . | . . . . Cargo Convoy Interrupts . | . . . . Stealth | -11 -10 -9 -9 --------- Run | Jun Mat Mat Sto Distress Signals 7 | . . 6 1 Communications Jammed . | . . . . Distress Signals . | . . . . Times Spotted 76 | . 11 50 15 Peak Tracking Total 7 | . 5 7 5 Tactical Retreats 6 | . . 5 1 Traps | -11 -10 -9 -9 ------- Run | Jun Mat Mat Sto Traps Triggered 5 | . 3 2 . Indirectly . | . . . . Trap Hack Attempts . | . . . . Triggered . | . . . . Disarmed . | . . . . Reprogrammed . | . . . . Reused . | . . . . Traps Extracted . | . . . . Installed . | . . . . Triggered . | . . . . Machines | -11 -10 -9 -9 ---------- Run | Jun Mat Mat Sto Machines Disabled . | . . . . Max in Single Turn . | . . . . Machines Repaired . | . . . . Machines Sabotaged . | . . . . Overloaded Fab Kills . | . . . . Hacking | -11 -10 -9 -9 --------- Run | Jun Mat Mat Sto Machines Accessed 9 | . 4 5 . Terminals 9 | . 4 5 . Fabricators . | . . . . Repair Stations . | . . . . Recycling Units . | . . . . Scanalyzers . | . . . . Garrison Access . | . . . . Total Hacks 33 | . 17 16 . Successful 22 | . 14 8 . Failed 11 | . 3 8 . Catastrophic 1 | . . 1 . Database Lockouts . | . . . . Manual . | . . . . Terminals 33 | . 17 16 . Fabricators . | . . . . Repair Stations . | . . . . Recycling Units . | . . . . Scanalyzers . | . . . . Garrison Access . | . . . . Terminal Hacks 22 | . 14 8 . Record 10 | . 7 3 . Prototype ID Bank 6 | . 4 2 . Branch Access Points 1 | . . 1 . Emergency Access Points 2 | . 2 . . Locate Traps 1 | . . 1 . Zone Layout 2 | . 1 1 . Fabricator Hacks . | . . . . Repair Station Hacks . | . . . . Recycling Unit Hacks . | . . . . Scanalyzer . | . . . . Garrison Access Hacks . | . . . . Unauthorized Hacks . | . . . . Terminals . | . . . . Fabricators . | . . . . Repair Stations . | . . . . Recycling Units . | . . . . Scanalyzers . | . . . . Garrison Access . | . . . . Data Cores Recovered . | . . . . Used . | . . . . Hacking Detections 8 | . 4 4 . Full Trace Events 6 | . 2 4 . Feedback Events 1 | . . 1 . Corruption 1 | . . 1 . Feedback Blocked . | . . . . Robot Schematics Acquired . | . . . . Robots Built . | . . . . Authchips . | . . . . Time . | . . . . Total Robot Build Rating . | . . . . Part Schematics Acquired . | . . . . Parts Built . | . . . . Authchips . | . . . . Time . | . . . . Total Part Build Rating . | . . . . Parts Repaired . | . . . . Time . | . . . . Parts Recycled . | . . . . Recycled Matter . | . . . . Retrieved Matter . | . . . . Retrieved Components . | . . . . Parts Scanalyzed . | . . . . Part Schematics Acquired . | . . . . Parts Damaged . | . . . . Bothacking | -11 -10 -9 -9 ------------ Run | Jun Mat Mat Sto Used RIF Installer . | . . . . Robots Hacked . | . . . . Non-combat . | . . . . Combat . | . . . . Robot Hacks Applied . | . . . . Relay Couplers Released . | . . . . Fabnet Peak Effective % . | . . . . Robots Rewired . | . . . . Allies Hacked . | . . . . Hacks Repelled . | . . . . Allies | -11 -10 -9 -9 -------- Run | Jun Mat Mat Sto Total Allies . | . . . . Largest Group . | . . . . Highest-Rated Group . | . . . . Highest-Rated Ally . | . . . . Total Orders . | . . . . Ally Attacks . | . . . . Total Damage . | . . . . Kills . | . . . . Allies Corrupted . | . . . . Allies Melted . | . . . . Intel | -11 -10 -9 -9 ------- Run | Jun Mat Mat Sto Robot Analysis Total . | . . . . Derelict Logs Recovered . | . . . . Drone Launches . | . . . . Drone Recoveries . | . . . . Exploration | -11 -10 -9 -9 ------------- Run | Jun Mat Mat Sto Turns Passed 2208 | 73 370 1378 387 Spaces Moved 951 | 63 273 563 52 Core 39 | 33 . . 6 Treads . | . . . . Legs 129 | . . 83 46 Wheels 783 | 30 273 480 . Hover . | . . . . Flight . | . . . . Fastest Speed 50 | 50 100 100 400 Average Speed 161 | 87 100 162 572 Slowest Speed 1600 | 150 100 470 1600 Overloaded Moves . | . . . . Propulsion Burnouts . | . . . . Robots Hopped . | . . . . Cave-ins Triggered . | . . . . Exploration Rate (%) 21 | 5 33 35 12 Regions Visited 3 Branch Regions 1 Pre-discovered Areas . | . . . . Known Exits Taken 1 | . . 1 . Unknown Exits Taken 2 | 1 1 . . Scrap Searched . | . . . . Spaces Dug . | . . . . Terrain Destroyed 2 | . . . 2 Melee . | . . . . Projectile . | . . . . AOE 2 | . . . 2 Terrain Rammed . | . . . . Walls Destroyed . | . . . . Machines Disabled . | . . . . Actions | -11 -10 -9 -9 --------- Run | Jun Mat Mat Sto Total 1298 | 78 326 808 86 Wait 114 | . 19 95 . Move 948 | 62 272 562 52 Hop . | . . . . Pick Up 25 | 8 4 11 2 Fast Attach 5 | 4 1 . . Attach 15 | 2 1 10 2 Detach 1 | . . 1 . Swap 7 | 2 . 5 . Drop 10 | . 5 5 . Fire 149 | . 23 99 27 Melee . | . . . . Ram 12 | . 1 10 1 Kick 12 | . . 10 2 Crush . | . . . . Escape Stasis . | . . . . Rewire . | . . . . Trap . | . . . . Miscellaneous . | . . . . Route ------- -11/Junkyard -10/Materials -9/Materials (discovered 5 exits: [*Mat] / Min x2 / *Sto x2) -9/Storage History --------- Turn | Location | Event 11 | -11/Junkyard | Discovered new exit (range 16) 74 | -11/Junkyard | Entered Materials 300 | -10/Materials | Build established: Mutant 409 | -10/Materials | Discovered new exit (range 9) 444 | -10/Materials | Entered another Materials area 444 | -9/Materials | Evolved 2 slots: Power x1, Utility x1 554 | -9/Materials | Identified exit to Mines 554 | -9/Materials | Identified exit to Storage 1747 | -9/Materials | Discovered new exit (range 10) 1822 | -9/Materials | Entered Storage 1849 | -9/Storage | Build established: Scavenger-Mutant 1955 | -9/Storage | Core integrity fell below 50% 2029 | -9/Storage | Lost 3 parts (2p1w) 2201 | -9/Storage | Core integrity fell below 20% 2209 | -9/Storage | Destroyed by B-36 Bruiser with Hammer Last Messages --------------- S-10 Pest destroyed. K-01 Serf collects debris. Aluminum Leg destroyed. Acquired Lgt. Assault Rifle. Aluminum Leg destroyed. S-10 Pest destroyed. R-06 Scavenger destroyed. R-06 Scavenger collects Flight Unit. K-01 Serf collects debris. R-06 Scavenger collects Flight Unit. K-01 Serf cleans the Terminal. K-01 Serf cleans the Transfer Shaft. K-01 Serf collects debris. Knocked back. Med. Laser destroyed. Lgt. Ion Engine destroyed. Imp. EM Shotgun destroyed. Imp. Heat Sink destroyed. Slammed into B-36 Bruiser. Sml. Storage Unit destroyed. Map ----- +----------------------------------------------------+ | | | ???????????????????????????????????? | | ???????????????????????????????????? | | ????????????????????###????????????? | | ????????????????????""#????????????? | | ???????????????????"G"#????????????? | | ?????##############" "####"T"###???? | | ?????# * ??? | | ?????# =%[ %* ??? | | ?????# !%%!= !%! ??? | | ?????######+########### #####+???? | | ???????# [[ = #???????? #????????? | | ???????# =%! #??????????????????? | | ???????# !*! #??????????????????? | | ???????# #??????????????????? | | ???????# #??????????????????? | | ???????# = #??????????????????? | | ???????# % #??????????????????? | | ???????# #??????????????????? | | ???????# #??????????????????? | | ???????#+##k#####??????????????????? | | ???????# %##?????????????????????? | | ???????# T#?????????????????????? | | ???????# g ##?????#???????????????? | | ???????# gb#???? #???????????????? | | ???????# @#??""" #???????????????? | | ???????# u# """ #???????????????? | | ???????# + """ #???????????????? | | ???????####%# #???????????????? | | ??????????# # #???????????????? | | ??????????# #?##T###???????????????? | | ??????????#%#????#?????????????????? | | ??????????#u#??????????????????????? | | ??????????#% ??????????????????????? | | ??????????+ ??????????????????????? | | ??????????# ??????????????????????? | | ??????????###??????????????????????? | | ???????????????????????????????????? | | ???????????????????????????????????? | | ???????????????????????????????????? | | ???????????????????????????????????? | | ???????????????????????????????????? | | ???????????????????????????????????? | | ???????????????????????????????????? | | ???????????????????????????????????? | | ???????????????????????????????????? | | ???????????????????????????????????? | | ???????????????????????????????????? | | ???????????????????????????????????? | | ???????????????????????????????????? | +----------------------------------------------------+ Best States ------------- Heat Dissipation 42 Energy Generation 15 Energy Capacity 400 Matter Stores 300 Matter Capacity 300 Sight Range 16 Terrain Scan Density 10 Resistance: KI 20 Resistance: TH 20 Resistance: EX 20 Resistance: EM 20 Resistance: I 20 Resistance: S 20 Resistance: P 20 Evasion (%) 50 Offensive Hacking 10 Item Schematics ----------------- None Robot Schematics ------------------ None Fabricated ------------ Nothing Alien Tech Used ----------------- None Achievements -------------- Hey, That's Mine! It's Just You Librarian Storm Trooper Challenges ------------ None Game ------ Seed AutogunTitaniumBoomstick Manual? 0 Play Time 00:33:02 Cumulative 3.9 hours Start 2023.10.27 @ 20:41:10 End 2023.10.27 @ 21:28:19 Sessions 1 Manual Loads 0 Difficulty Adventurer Special Mode None Game No. 7 Rogue 4 Adventurer 3 Explorer 0 Win Type - Total 0 Types 0/0/0/0/0/0/0/0/0 Lore% 2 Gallery% 6 Achievement% 6 Wizard Run 0 Options --------- ASCII 0 Keyboard 0 Movement Arrows Keybinds 0 Fullscreen 2 Font 18/SmallcapsGlow Map View 76x50 Tactical HUD 0 Map Filters NONE Filters NONE Steam 1 RUN: 46675a04-4b83-4707-bea3-6fade9a8c9a4